bitfinex/quotes_ETHUSD_20240612
["timestamp","ask_amount","ask_price","bid_price","bid_amount"]
[1718190849266,0.861,3542.9,3542.3,2.4242]
[1718190849665,0.861,3543.1,3542.3,2.4242]
[1718190853807,0.861,3543.1,3542.3,3.2852]
[1718190857033,1.74452436,3543.1,3542.3,3.2852]
[1718190859121,0.861,3542.9,3542.3,2.4242]
[1718190859416,0.88352436,3542.8,3542.3,2.4242]
[1718190861180,1.74452436,3542.9,3542.3,2.4242]
[1718190864402,0.861,3542.9,3542.3,2.4242]
[1718190864744,4.54733062,3542.9,3542.1,2.3164]
[1718190869643,0.861,3542.7,3541.8,0.861]
[1718190870649,0.861,3542.7,3541.9,2.2699]
[1718190871249,3.258,3542.9,3541.9,2.2699]
[1718190875961,4.14152436,3542.9,3541.9,2.2699]
[1718190876124,4.14152436,3542.9,3541.9,2.88299]
[1718190877931,3.258,3542.9,3541.9,2.88299]
[1718190878530,4.14152436,3542.9,3541.9,2.88299]
[1718190879371,0.861,3542.7,3541.9,2.2699]
[1718190879531,3.3439,3542.5,3541.9,2.2699]
[1718190879931,2.4829,3542.5,3541.9,2.2699]
[1718190880628,2.4829,3542.5,3541.7,2.4819]
[1718190881348,2.4829,3542.5,3541.7,2.81619]
[1718190882761,3.3439,3542.5,3541.7,2.81619]
[1718190888002,2.4829,3542.5,3541.7,2.81619]
[1718190888217,0.88352436,3542.8,3542.0,0.861]
[1718190888504,3.20492436,3542.9,3542.0,0.91745824]
[1718190888803,2.3214,3542.9,3542.0,0.91745824]
[1718190888958,3.20492436,3542.9,3542.0,0.91745824]
[1718190889162,3.20492436,3542.9,3542.0,1.28890306]
[1718190889466,2.3214,3542.9,3542.0,1.28890306]
[1718190889993,4.56911736,3543.0,3542.1,2.3236]
[1718190890293,0.861,3542.9,3542.1,2.3236]
[1718190890522,0.861,3542.9,3542.2,0.0564552]
[1718190892850,0.861,3542.9,3542.1,2.6346545]
[1718190894209,4.56911736,3543.0,3542.1,2.6346545]
[1718190894408,5.43011736,3543.0,3542.1,2.6346545]
[1718190896690,0.88352436,3542.9,3542.1,2.6346545]
[1718190896892,5.43011736,3543.0,3542.2,0.33429]
[1718190898895,5.43011736,3543.0,3542.2,0.39074527]
[1718190899805,4.546593,3543.0,3542.2,0.39074527]
[1718190900006,5.43011736,3543.0,3542.2,0.39074527]
[1718190900393,4.546593,3543.0,3542.2,0.33429]
[1718190901125,5.43011736,3543.0,3542.2,0.33429]
[1718190901516,4.56911736,3543.0,3542.2,0.33429]
[1718190901688,4.56911736,3543.0,3542.3,2.3169]
[1718190901891,3.685593,3543.0,3542.3,2.3169]
[1718190902113,3.685593,3543.0,3542.3,2.69302374]
[1718190902396,3.685593,3543.0,3542.5,2.337]
[1718190902617,1.74452436,3543.3,3542.5,2.337]
[1718190902817,0.88352436,3543.2,3542.5,2.337]
[1718190903332,3.88352436,3543.2,3542.5,2.337]
[1718190903642,0.88352436,3543.2,3542.5,2.337]
[1718190906397,4.74452436,3543.3,3542.5,2.337]
[1718190907627,6.07584198,3543.3,3542.5,2.337]
[1718190908136,0.88352436,3543.2,3542.5,2.337]
[1718190908316,6.07584198,3543.3,3542.5,2.337]
[1718190910411,5.19231762,3543.3,3542.5,2.337]
[1718190911920,6.07584198,3543.3,3542.5,2.337]
[1718190914325,1.97732984,3543.2,3542.5,2.337]
[1718190914943,0.861,3543.1,3542.5,2.337]
[1718190919179,3.88352436,3543.3,3542.0,0.58333737]
[1718190919180,0.861,3542.9,3542.1,2.4326]
[1718190929413,2.345,3542.8,3542.0,0.58333737]
[1718190929636,2.345,3542.8,3541.9,2.87143737]
[1718190931325,2.345,3542.8,3542.0,0.58333737]
[1718190932001,0.861,3542.6,3542.0,0.58333737]
[1718190932344,0.861,3542.6,3541.7,0.58333737]
[1718190932653,1.74452436,3542.6,3541.7,0.58125182]
[1718190932803,0.861,3542.6,3541.7,1.16458919]
[1718190932994,0.88352436,3542.7,3541.8,0.861]
[1718190933209,0.88352436,3542.7,3541.8,1.44433737]
[1718190933409,0.88352436,3542.6,3541.8,0.861]
[1718190935326,0.88352436,3542.7,3541.8,1.44433737]
[1718190935528,1.8789547,3542.7,3541.8,1.44433737]
[1718190935929,0.88352436,3542.6,3541.8,0.861]
[1718190938643,0.99543034,3542.7,3541.7,2.02558919]
[1718190938644,1.8789547,3542.7,3541.7,2.02558919]
[1718190938951,0.88352436,3542.6,3541.7,2.02558919]
[1718190939335,1.8789547,3542.7,3541.7,1.44225182]
[1718190939844,0.88352436,3542.6,3541.7,1.44225182]
[1718190940243,2.3879,3542.4,3541.6,2.96843737]
[1718190940475,2.3879,3542.4,3541.6,3.2461]
[1718190943284,2.3879,3542.4,3541.6,2.3851]
[1718190950583,0.861,3542.3,3541.4,2.84873737]
[1718190950797,0.861,3542.3,3541.5,8.4702]
[1718190950998,2.3879,3542.4,3541.5,8.4702]
[1718190953719,2.3879,3542.4,3541.5,9.05353737]
[1718190954310,2.3879,3542.4,3541.5,8.4702]
[1718190956415,2.3879,3542.4,3541.5,9.05353737]
[1718190959416,0.861,3542.3,3541.5,9.05353737]
[1718190959791,0.861,3542.3,3541.5,8.4702]
[1718190960421,2.3574,3542.2,3541.5,8.4702]
[1718190961495,2.3574,3541.7,3541.5,8.4702]
[1718190961823,0.861,3541.6,3541.5,8.4702]
[1718190970543,3.58024,3541.6,3541.5,8.4702]
[1718190970749,3.2584,3541.6,3541.5,8.4702]
[1718190973385,2.3974,3541.6,3541.5,8.4702]
[1718190973584,3.2584,3541.6,3541.5,8.4702]
[1718190980028,3.8084,3541.6,3541.5,8.4702]
[1718190980338,4.39525442,3541.6,3541.5,8.4702]
[1718190983694,7.39525442,3541.6,3541.5,8.4702]
[1718190985137,9.71222392,3541.6,3541.5,8.4702]
[1718190993533,8.82869956,3541.6,3541.5,8.4702]
[1718190993753,3.0,3541.6,3541.5,8.4702]
[1718190994054,0.88352436,3542.2,3541.5,8.4702]
[1718190994255,0.861,3542.0,3541.5,8.4702]
[1718190994631,4.03377637,3542.4,3541.5,8.4702]
[1718190994632,3.25262436,3542.4,3541.5,8.4702]
[1718190994827,0.861,3542.2,3541.5,8.4702]
[1718190995032,0.861,3542.0,3541.5,8.4702]
[1718190995922,3.685593,3542.5,3541.5,8.4702]
[1718190996462,0.861,3542.4,3541.5,8.4702]
[1718190996664,4.546593,3542.5,3541.6,0.05646712]
[1718190996863,4.546593,3542.5,3541.7,2.3076]
[1718190997069,3.685593,3542.5,3541.8,0.861]
[1718190997231,3.685593,3542.5,3541.9,0.31686]
[1718190999043,0.861,3542.4,3541.9,0.31686]
[1718191001577,3.0,3542.7,3541.9,0.31686]
[1718191002077,0.861,3542.4,3541.9,0.31686]
[1718191002251,3.0,3542.7,3541.9,0.31686]
[1718191002458,0.861,3542.5,3542.0,0.262446]
[1718191005871,0.861,3542.6,3542.0,0.262446]
[1718191007772,0.861,3542.4,3542.0,0.262446]
[1718191008309,0.861,3542.2,3541.7,2.3076]
[1718191012390,3.93517315,3542.8,3541.7,2.3076]
[1718191012593,0.861,3542.3,3541.7,2.3076]
[1718191025824,3.93517315,3542.8,3541.5,8.4702]
[1718191025825,0.861,3541.9,3541.5,8.4702]
[1718191027157,3.0,3542.3,3541.5,8.4702]
[1718191027158,0.861,3541.7,3541.5,8.4702]
[1718191032496,0.861,3541.9,3541.5,8.4702]
[1718191032794,0.861,3542.0,3541.5,8.4702]
[1718191032999,6.685593,3542.3,3541.5,8.4702]
[1718191033171,0.861,3542.1,3541.5,8.4702]
[1718191044832,7.56911736,3542.3,3541.6,2.2891]
[1718191045036,0.861,3542.2,3541.6,2.2891]
[1718191047166,6.685593,3542.3,3541.6,2.2891]
[1718191047167,3.685593,3542.3,3541.6,2.2891]
[1718191047612,3.685593,3542.3,3541.8,2.3023]
[1718191049311,1.74452436,3542.6,3541.8,2.3023]
[1718191049554,4.74452436,3542.6,3542.0,2.4228]
[1718191052959,3.88352436,3542.6,3542.0,2.4228]
[1718191054029,0.88352436,3542.6,3542.0,2.4228]
[1718191056428,4.56911736,3542.7,3542.0,2.4228]
[1718191056640,4.56911736,3542.7,3542.0,2.493]
[1718191056857,4.56911736,3542.7,3542.2,2.493]
[1718191058268,0.88352436,3542.7,3542.2,2.493]
[1718191059249,1.13310451,3542.8,3542.2,2.493]
[1718191059565,0.24958015,3542.8,3542.2,2.493]
[1718191059727,0.24958015,3542.8,3542.2,2.92343704]
[1718191062639,0.24958015,3542.8,3542.2,3.78443704]
[1718191062839,0.24958015,3542.8,3542.3,2.3249]
[1718191074964,6.989493,3543.1,3542.3,2.3249]
[1718191076349,6.128493,3543.1,3542.3,2.3249]
[1718191076549,6.989493,3543.1,3542.3,2.3249]
[1718191076763,6.989493,3543.1,3542.3,2.6865337]
[1718191078793,4.546593,3543.1,3542.3,2.6865337]
[1718191084294,3.685593,3543.1,3542.4,0.861]
[1718191085182,3.685593,3543.1,3542.3,2.6865337]
[1718191088101,3.685593,3543.1,3542.6,0.861]
[1718191088315,3.26902436,3543.3,3542.6,0.861]
[1718191088316,0.88352436,3543.3,3542.7,2.473]
[1718191088625,3.685593,3543.5,3542.7,2.473]
[1718191089368,3.685593,3543.5,3542.8,0.861]
[1718191089998,0.88352436,3543.7,3543.4,2.2665]
[1718191090202,0.88352436,3543.9,3543.5,0.861]
[1718191090402,3.685593,3544.2,3543.5,0.91743576]
[1718191090600,3.685593,3544.2,3543.7,0.861]
[1718191090878,3.685593,3544.2,3543.9,0.861]
[1718191091080,3.685593,3544.2,3543.7,0.861]
[1718191091483,3.685593,3544.2,3543.9,0.861]
[1718191092988,4.56911736,3544.7,3544.0,2.3865]
[1718191093307,1.17661986,3544.9,3544.0,2.3865]
[1718191093308,0.57457372,3544.6,3544.0,2.3865]
[1718191093513,0.88352436,3544.8,3544.0,2.3865]
[1718191094293,4.74452436,3544.9,3544.0,2.3865]
[1718191095333,3.0,3544.9,3544.0,2.3865]
[1718191095691,3.861,3544.9,3544.0,2.3865]
[1718191096386,3.0,3544.9,3544.1,0.861]
[1718191096581,5.09294174,3544.9,3544.1,0.861]
[1718191097483,5.09294174,3544.9,3544.0,2.3865]
[1718191097888,0.861,3544.8,3544.0,2.3865]
[1718191098294,14.546593,3545.0,3544.0,2.3865]
[1718191100623,13.685593,3545.0,3544.1,0.91742563]
[1718191100790,13.685593,3545.0,3544.3,3.1991]
[1718191102105,10.0,3545.0,3544.3,3.1991]
[1718191102511,10.0,3545.0,3544.3,2.3381]
[1718191104023,10.0,3545.0,3544.3,3.1991]
[1718191106742,10.0,3545.0,3544.4,2.4927]
[1718191106896,10.0,3545.0,3544.5,0.31752142]
[1718191107092,10.0,3545.0,3544.5,1.17852142]
[1718191107350,10.0,3545.0,3544.6,2.4254]
[1718191124171,10.0,3545.0,3544.7,0.861]
[1718191126187,10.0,3545.0,3544.9,0.861]
[1718191126346,10.0,3545.0,3544.9,1.18964]
[1718191126670,10.0,3545.0,3544.9,0.32864]
[1718191134315,10.0,3545.0,3544.3,2.2861]
[1718191134464,10.0,3545.0,3544.0,0.58333737]
[1718191134465,0.861,3544.9,3544.4,8.464]
[1718191135485,10.0,3545.0,3544.4,8.464]
[1718191136883,10.88352436,3545.0,3544.4,8.464]
[1718191137984,10.0,3545.0,3544.4,8.464]
[1718191138585,10.88352436,3545.0,3544.4,8.464]
[1718191141950,0.88352436,3544.9,3544.4,8.464]
[1718191142919,0.861,3544.7,3544.4,8.464]
[1718191143112,0.861,3544.5,3544.4,8.464]
[1718191143432,4.36311986,3544.5,3544.4,8.464]
[1718191143829,4.37014242,3544.5,3544.4,8.464]
[1718191144032,3.1865,3544.5,3544.4,8.464]
[1718191144210,4.83585167,3544.5,3544.4,8.464]
[1718191144408,3.65247676,3544.5,3544.4,8.464]
[1718191144804,4.83585914,3544.5,3544.4,8.464]
[1718191145715,3.65247676,3544.5,3544.4,8.464]
[1718191145934,8.0859219,3544.5,3544.4,8.464]
[1718191146342,2.444,3544.4,3542.9,2.2784]
[1718191146545,0.861,3543.6,3542.9,2.2784]
[1718191146922,1.74802332,3543.6,3542.9,2.2784]
[1718191147463,0.861,3543.6,3542.9,2.2784]
[1718191148059,0.88702332,3543.8,3542.9,2.2784]
[1718191148343,0.861,3543.7,3542.9,2.2784]
[1718191148642,0.861,3543.7,3543.0,0.35082753]
[1718191151948,3.685593,3543.9,3543.1,0.861]
[1718191152121,3.685593,3543.9,3543.1,0.91744076]
[1718191152321,3.685593,3543.9,3543.1,0.861]
[1718191152765,3.685593,3543.9,3543.3,0.861]
[1718191152940,3.685593,3543.9,3543.4,2.4424]
[1718191153243,3.685593,3543.9,3543.5,0.33034]
[1718191154153,3.685593,3543.9,3543.5,0.38677718]
[1718191154322,3.685593,3543.9,3543.7,0.861]
[1718191154644,3.685593,3544.5,3543.7,0.861]
[1718191154846,3.0,3544.4,3543.7,0.861]
[1718191155019,3.685593,3544.5,3543.8,0.05643338]
[1718191155544,3.685593,3544.5,3543.9,8.4646]
[1718191156237,3.685593,3544.5,3544.0,0.861]
[1718191156437,3.685593,3544.5,3543.9,8.4646]
[1718191157920,0.861,3544.8,3543.9,8.4646]
[1718191158120,3.861,3544.8,3543.9,9.1123716]
[1718191158820,3.861,3544.8,3543.9,9.9733716]
[1718191160351,3.861,3544.8,3543.9,9.1123716]
[1718191161426,3.0,3544.8,3544.0,2.3993]
[1718191161630,3.861,3544.8,3544.0,2.3993]
[1718191161943,3.861,3544.8,3544.0,2.76831772]
[1718191165967,3.0,3544.8,3544.0,2.76831772]
[1718191166334,3.861,3544.8,3544.0,2.76831772]
[1718191167183,3.0,3544.8,3544.0,2.76831772]
[1718191167335,3.0,3544.8,3544.1,0.05642923]
[1718191167531,3.0,3544.8,3544.2,0.6477716]
[1718191167731,3.0,3544.8,3544.0,2.3993]
[1718191174658,0.861,3544.5,3544.0,2.3993]
[1718191174857,0.861,3544.5,3543.9,8.4646]
[1718191176362,3.2135,3544.7,3543.9,8.4646]
[1718191184268,0.861,3544.7,3543.9,8.4646]
[1718191186093,0.88702332,3544.8,3543.9,8.4646]
[1718191186293,1.74802332,3544.8,3543.9,8.4646]
[1718191186593,0.861,3544.8,3543.9,8.4646]
[1718191187362,1.74802332,3544.8,3543.9,8.4646]
[1718191190571,0.88702332,3544.7,3543.9,8.4646]
[1718191190771,0.88702332,3544.7,3544.1,2.3947]
[1718191191003,0.88702332,3544.8,3544.1,2.3947]
[1718191191169,1.74802332,3544.8,3544.1,2.3947]
[1718191191510,0.861,3544.8,3544.1,2.3947]
[1718191192504,1.74802332,3544.8,3544.1,2.3947]
[1718191193002,0.861,3544.8,3544.1,2.3947]
[1718191193417,1.74802332,3544.8,3544.1,2.3947]
[1718191194477,0.88702332,3544.7,3544.1,2.3947]
[1718191194985,1.74802332,3544.8,3544.1,2.3947]
[1718191195411,0.88702332,3544.7,3544.1,2.3947]
[1718191196931,0.88702332,3544.6,3544.1,2.3947]
[1718191198139,0.88702332,3544.6,3544.5,2.3081]
[1718191198305,3.685593,3544.9,3544.5,2.3081]
[1718191198631,3.685593,3544.9,3544.6,0.861]
[1718191199128,3.685593,3544.9,3544.7,10.7714]
[1718191199306,10.0,3545.0,3544.7,10.7714]
[1718191200908,10.88702332,3545.0,3544.7,10.7714]
[1718191201734,10.0,3545.0,3544.7,10.7714]
[1718191203937,10.0,3545.0,3544.8,0.861]
[1718191204247,10.0,3545.0,3544.9,2.4615]
[1718191207843,9.80458772,3545.0,3544.9,2.4615]
[1718191210746,9.80458772,3545.0,3544.7,8.4633]
[1718191211623,9.80458772,3545.0,3544.7,8.3213]
[1718191212011,9.80458772,3545.0,3544.7,8.2933]
[1718191217816,9.80458772,3545.0,3544.7,9.1543]
[1718191229829,9.80458772,3545.0,3544.8,2.3749]
[1718191230016,9.80458772,3545.0,3544.9,0.861]
[1718191233774,9.80458772,3545.0,3544.8,2.3749]
[1718191233950,9.80458772,3545.0,3544.7,9.1543]
[1718191236179,9.80458772,3545.0,3544.8,0.05641591]
[1718191236425,9.80458772,3545.0,3544.9,0.861]
[1718191242090,9.80458772,3545.0,3544.9,9.4939]
[1718191258535,9.80458772,3545.0,3544.9,8.6329]
[1718191259269,12.17908772,3545.0,3544.9,8.6329]
[1718191260832,13.36178548,3545.0,3544.9,8.6329]
[1718191261029,14.93194333,3545.0,3544.9,8.6329]
[1718191261635,13.74924557,3545.0,3544.9,8.6329]
[1718191262467,14.63668818,3545.0,3544.9,8.6329]
[1718191263288,13.06653033,3545.0,3544.9,8.6329]
[1718191263500,12.17908772,3545.0,3544.9,8.6329]
[1718191274656,9.80458772,3545.0,3544.9,8.6329]
[1718191276784,12.19308772,3545.0,3544.9,8.6329]
[1718191277385,13.37578548,3545.0,3544.9,8.6329]
[1718191277658,14.9472799,3545.0,3544.9,8.6329]
[1718191278371,13.76458214,3545.0,3544.9,8.6329]
[1718191278754,17.9472799,3545.0,3544.9,8.6329]
[1718191278955,18.24274085,3545.0,3544.9,8.6329]
[1718191279981,16.76458214,3545.0,3544.9,8.6329]
[1718191280400,17.94639665,3545.0,3544.9,8.6329]
[1718191283073,16.76458214,3545.0,3544.9,8.6329]
[1718191283959,17.65049983,3545.0,3544.9,8.6329]
[1718191284672,16.76458214,3545.0,3544.9,8.6329]
[1718191287158,17.6502293,3545.0,3544.9,8.6329]
[1718191289537,16.76458214,3545.0,3544.9,8.6329]
[1718191290241,17.94532322,3545.0,3544.9,8.6329]
[1718191290449,16.76458214,3545.0,3544.9,8.6329]
[1718191290941,17.94534068,3545.0,3544.9,8.6329]
[1718191291322,18.80634068,3545.0,3544.9,8.6329]
[1718191291520,17.62558214,3545.0,3544.9,8.6329]
[1718191291722,18.5110752,3545.0,3544.9,8.6329]
[1718191292137,16.76458214,3545.0,3544.9,8.6329]
[1718191292441,18.51105227,3545.0,3544.9,8.6329]
[1718191292850,17.62558214,3545.0,3544.9,8.6329]
[1718191294864,16.76458214,3545.0,3544.9,8.6329]
[1718191295020,17.62558214,3545.0,3544.9,8.6329]
[1718191295427,18.80634068,3545.0,3544.9,8.6329]
[1718191295938,17.62558214,3545.0,3544.9,8.6329]
[1718191296455,18.80634068,3545.0,3544.9,8.6329]
[1718191296630,17.62558214,3545.0,3544.9,8.6329]
[1718191306170,18.11322533,3545.0,3544.9,8.6329]
[1718191306362,19.46775564,3545.0,3544.9,8.6329]
[1718191306942,20.90120078,3545.0,3544.9,8.6329]
[1718191307144,19.54667047,3545.0,3544.9,8.6329]
[1718191307672,19.54669261,3545.0,3544.9,8.6329]
[1718191308180,18.68569261,3545.0,3544.9,8.6329]
[1718191308379,19.54669261,3545.0,3544.9,8.6329]
[1718191310183,20.90086692,3545.0,3544.9,8.6329]
[1718191313865,19.54668447,3545.0,3544.9,8.6329]
[1718191315583,20.09668447,3545.0,3544.9,8.6329]
[1718191316176,20.0966908,3545.0,3544.9,8.6329]
[1718191319287,21.86986752,3545.0,3544.9,8.6329]
[1718191319453,20.0966908,3545.0,3544.9,8.6329]
[1718191320289,21.86986752,3545.0,3544.9,8.6329]
[1718191320491,20.0966908,3545.0,3544.9,8.6329]
[1718191320881,21.86986752,3545.0,3544.9,8.6329]
[1718191322259,20.0966908,3545.0,3544.9,8.6329]
[1718191322597,21.87156444,3545.0,3544.9,8.6329]
[1718191323262,20.0966908,3545.0,3544.9,8.6329]
[1718191323462,21.87195839,3545.0,3544.9,8.6329]
[1718191323693,23.22586063,3545.0,3544.9,8.6329]
[1718191323895,20.0966908,3545.0,3544.9,8.6329]
[1718191324294,21.87186219,3545.0,3544.9,8.6329]
[1718191324493,20.0966908,3545.0,3544.9,8.6329]
[1718191326976,21.87195652,3545.0,3544.9,8.6329]
[1718191327593,23.22587645,3545.0,3544.9,8.6329]
[1718191328401,20.0966908,3545.0,3544.9,8.6329]
[1718191332492,20.09669705,3545.0,3544.9,8.6329]
[1718191333707,15.72475191,3545.0,3544.9,8.6329]
[1718191333885,16.42253288,3545.0,3544.9,8.6329]
[1718191334202,12.80458772,3545.0,3544.9,10.9044]
[1718191334367,13.98849055,3545.0,3544.9,10.9044]
[1718191335183,12.80458772,3545.0,3544.9,10.9044]
[1718191335385,13.98849055,3545.0,3544.9,10.9044]
[1718191337608,12.80458772,3545.0,3544.9,10.9044]
[1718191340416,13.69169367,3545.0,3544.9,10.9044]
[1718191340918,12.80458772,3545.0,3544.9,10.9044]
[1718191341274,13.69162876,3545.0,3544.9,10.9044]
[1718191341475,12.80458772,3545.0,3544.9,10.9044]
[1718191342911,13.69151854,3545.0,3544.9,10.9044]
[1718191343079,12.80458772,3545.0,3544.9,10.9044]
[1718191343480,13.6914758,3545.0,3544.9,10.9044]
[1718191346496,10.6914758,3545.0,3544.9,10.9044]
[1718191349844,9.80458772,3545.0,3544.9,10.9044]
[1718191360041,9.80458772,3545.0,3544.9,11.7654]
[1718191365316,9.80458772,3545.0,3544.9,10.9044]
[1718191365944,9.80458772,3545.0,3544.9,8.6329]
[1718191387549,10.6914758,3545.0,3544.9,8.6329]
[1718191387719,9.80458772,3545.0,3544.9,8.6329]
[1718191388146,10.69224186,3545.0,3544.9,8.6329]
[1718191388538,9.80458772,3545.0,3544.9,8.6329]
[1718191389060,10.69226119,3545.0,3544.9,8.6329]
[1718191389555,10.69229483,3545.0,3544.9,8.6329]
[1718191389760,9.80458772,3545.0,3544.9,8.6329]
[1718191390125,10.69228876,3545.0,3544.9,8.6329]
[1718191390319,10.69231573,3545.0,3544.9,8.6329]
[1718191390868,9.80458772,3545.0,3544.9,8.6329]
[1718191391225,10.98849055,3545.0,3544.9,8.6329]
[1718191391463,13.40799055,3545.0,3544.9,8.6329]
[1718191391923,12.22408772,3545.0,3544.9,8.6329]
[1718191392356,13.40799055,3545.0,3544.9,8.6329]
[1718191395294,14.98285409,3545.0,3544.9,8.6329]
[1718191395676,15.2323964,3545.0,3544.9,8.6329]
[1718191398018,16.71168633,3545.0,3544.9,8.6329]
[1718191398377,16.71164561,3545.0,3544.9,8.6329]
[1718191400884,15.2323964,3545.0,3544.9,8.6329]
[1718191401584,16.71096179,3545.0,3544.9,8.6329]
[1718191401815,15.2323964,3545.0,3544.9,8.6329]
[1718191404013,18.2323964,3545.0,3544.9,8.6329]
[1718191405409,19.71011341,3545.0,3544.9,8.6329]
[1718191407050,18.2323964,3545.0,3544.9,8.6329]
[1718191407250,19.70981565,3545.0,3544.9,8.6329]
[1718191408219,18.2323964,3545.0,3544.9,8.6329]
[1718191408553,19.70981565,3545.0,3544.9,8.6329]
[1718191409239,18.2323964,3545.0,3544.9,8.6329]
[1718191410356,19.41407675,3545.0,3544.9,8.6329]
[1718191410659,20.27507675,3545.0,3544.9,8.6329]
[1718191411746,19.41407675,3545.0,3544.9,8.6329]
[1718191411952,20.27507675,3545.0,3544.9,8.6329]
[1718191412769,16.42213161,3545.0,3544.9,8.6329]
[1718191412980,14.84726807,3545.0,3544.9,8.6329]
[1718191413769,13.66558772,3545.0,3544.9,8.6329]
[1718191416867,15.14275178,3545.0,3544.9,8.6329]
[1718191417556,13.66558772,3545.0,3544.9,8.6329]
[1718191417760,15.14275178,3545.0,3544.9,8.6329]
[1718191418271,16.90232696,3545.0,3544.9,8.6329]
[1718191419380,16.04132696,3545.0,3544.9,8.6329]
[1718191419533,16.90232696,3545.0,3544.9,8.6329]
[1718191419966,15.4251629,3545.0,3544.9,8.6329]
[1718191425287,16.90232696,3545.0,3544.9,8.6329]
[1718191425439,16.85860804,3545.0,3544.9,8.6329]
[1718191425885,18.3357721,3545.0,3544.9,8.6329]
[1718191428156,16.85860804,3545.0,3544.9,8.6329]
[1718191428354,18.3357721,3545.0,3544.9,8.6329]
[1718191429078,16.85860804,3545.0,3544.9,8.6329]
[1718191435170,17.34626773,3545.0,3544.9,8.6329]
[1718191435553,16.85860804,3545.0,3544.9,8.6329]
[1718191436577,17.34625197,3545.0,3544.9,8.6329]
[1718191436979,19.12178151,3545.0,3544.9,8.6329]
[1718191440081,18.26078151,3545.0,3544.9,8.6329]
[1718191440257,19.12178151,3545.0,3544.9,8.6329]
[1718191440462,17.34625197,3545.0,3544.9,8.6329]
[1718191440691,16.85860804,3545.0,3544.9,8.6329]
[1718191441293,18.63413758,3545.0,3544.9,8.6329]
[1718191441501,16.85860804,3545.0,3544.9,8.6329]
[1718191441975,18.63413758,3545.0,3544.9,8.6329]
[1718191442174,18.63524105,3545.0,3544.9,8.6329]
[1718191442873,16.85860804,3545.0,3544.9,8.6329]
[1718191444665,18.63524105,3545.0,3544.9,8.6329]
[1718191444997,17.34624797,3545.0,3544.9,8.6329]
[1718191447008,19.12309905,3545.0,3544.9,8.6329]
[1718191449103,18.63545912,3545.0,3544.9,8.6329]
[1718191449405,19.1231149,3545.0,3544.9,8.6329]
[1718191450586,18.63545912,3545.0,3544.9,8.6329]
[1718191450784,19.12311039,3545.0,3544.9,8.6329]
[1718191451612,17.34626312,3545.0,3544.9,8.6329]
[1718191454383,19.65546312,3545.0,3544.9,8.6329]
[1718191454707,19.65549141,3545.0,3544.9,8.6329]
[1718191456412,20.20549141,3545.0,3544.9,8.6329]
[1718191457389,20.20549141,3545.0,3544.9,8.26896036]
[1718191458319,20.20549141,3545.0,3542.9,0.44154111]
[1718191458320,2.389,3544.9,3543.1,2.3262]
[1718191458640,0.861,3543.6,3543.1,2.3262]
[1718191458794,1.74899882,3543.6,3543.1,2.3262]
[1718191459419,0.861,3543.6,3543.1,2.3262]
[1718191460221,0.88799882,3543.7,3543.1,2.3262]
[1718191460419,1.74899882,3543.7,3543.1,2.3262]
[1718191460623,0.861,3543.7,3543.2,0.23262]
[1718191461878,0.861,3543.7,3542.7,1.45199463]
[1718191461879,0.861,3543.7,3543.3,2.3262]
[1718191465868,0.88799882,3543.8,3543.3,2.3262]
[1718191466172,0.861,3543.7,3543.3,2.3262]
[1718191469146,1.74899882,3543.9,3543.3,2.3262]
[1718191469350,0.861,3543.9,3543.3,2.3262]
[1718191470022,1.74899882,3543.9,3543.3,2.3262]
[1718191470464,0.861,3543.7,3543.3,2.3262]
[1718191472387,0.861,3543.7,3542.7,0.861]
[1718191472576,0.861,3543.7,3542.8,2.2982]
[1718191472771,0.861,3543.7,3542.8,2.61412]
[1718191472976,1.74899882,3543.7,3542.8,2.61412]
[1718191473666,0.861,3543.7,3542.8,2.61412]
[1718191477637,0.861,3543.5,3542.8,2.61412]
[1718191477801,0.861,3543.5,3542.8,2.2982]
[1718191480338,2.3981,3543.6,3542.8,2.2982]
[1718191480545,0.861,3543.4,3542.8,2.2982]
[1718191485937,2.3981,3543.6,3542.8,2.2982]
[1718191486342,0.861,3543.5,3542.8,2.2982]
[1718191486680,3.88799882,3543.8,3543.1,2.3815]
[1718191486906,3.0,3543.9,3543.2,2.3815]
[1718191487189,0.861,3543.8,3543.2,2.3815]
[1718191488334,3.0,3543.9,3543.2,2.3815]
[1718191492776,3.861,3543.9,3543.2,2.3815]
[1718191496353,4.82285903,3543.9,3543.2,2.3815]
[1718191497652,5.71085785,3543.9,3543.2,2.3815]
[1718191500876,0.88799882,3543.8,3543.2,2.3815]
[1718191501973,4.84985785,3543.9,3543.2,2.3815]
[1718191502169,3.88799882,3543.9,3543.3,0.861]
[1718191502479,3.88799882,3543.9,3543.3,3.181]
[1718191505421,4.57359182,3544.0,3543.4,2.32594108]
[1718191505715,0.88799882,3544.1,3543.7,0.861]
[1718191506016,0.88799882,3544.3,3543.8,2.2695]
[1718191506513,16.85359182,3544.4,3543.8,2.2695]
[1718191506678,0.88799882,3544.4,3543.8,2.58255]
[1718191506877,3.88799882,3544.5,3543.8,2.58255]
[1718191507117,3.0,3544.4,3543.9,8.4646]
[1718191507307,0.88799882,3544.5,3543.9,8.4646]
[1718191507682,0.88799882,3544.5,3544.0,2.412]
[1718191511497,4.74899882,3544.6,3544.0,2.412]
[1718191511716,5.88422532,3544.6,3544.0,2.412]
[1718191511902,0.861,3544.4,3544.0,2.412]
[1718191512096,0.861,3544.4,3543.9,8.4646]
[1718191512517,3.88799882,3544.5,3543.9,8.4646]
[1718191512690,4.74899882,3544.5,3543.9,8.4646]
[1718191512892,6.22410797,3544.5,3543.9,8.4646]
[1718191514829,5.33610915,3544.5,3543.9,8.4646]